[Event "7th Tulasi Lal Memorial TCCC 2024"]
[Site "Chyasal"]
[Date "2024.12.29"]
[Round "2.3"]
[White "Thapa, Rishon"]
[Black "Phuyal, Aashish"]
[Result "0-1"]
[ECO "C88"]
[WhiteElo "1857"]
[BlackElo "1907"]
[Annotator "RC"]
[PlyCount "82"]
[EventDate "2024.12.29"]
[EventType "team-tourn"]
[EventCountry "NEP"]
[SourceTitle "playchess.com"]
[Source "ChessBase"]
[SourceQuality "1"]
[TimeControl "5400+30"]

1. e4 {[%emt 0:00:14]} e5 {[%emt 0:00:21]} 2. Nf3 {[%emt 0:00:12]} Nc6 {[%emt 0:00:04]} 3. Bb5 {[%emt 0:00:24]} a6 {[%emt 0:00:25]} 4. Ba4 {[%emt 0:00:08]} Nf6 {[%emt 0:00:18]} 5. O-O {[%emt 0:00:12]} Be7 {[%emt 0:00:20]} 6. Re1 {[%emt 0:00:07]} b5 {[%emt 0:00:11]} 7. Bb3 {[%emt 0:00:05]} O-O {[%emt 0:01:12]} 8. a4 {[%emt 0:01:09]} Bb7 {[%emt 0:03:00]} 9. d3 {[%emt 0:03:32]} d6 {[%emt 0:10:14]} 10. Bd2 {[%emt 0:05:46]} Qd7 {[%emt 0:04:48]} 11. Nc3 {[%emt 0:12:48]} Na5 {[%emt 0:17:30]} 12. Ba2 {[%emt 0:00:28]} b4 {[%emt 0:00:26]} 13. Ne2 {[%emt 0:01:18]} c5 {[%emt 0:04:49]} 14. Ng3 {[%emt 0:06:10]} Nc6 {[%emt 0:09:56]} 15. c3 {[%emt 0:15:18]} a5 {[%emt 0:44:26]} 16. Nf5 {[%emt 0:13:39]} Nd8 {[%emt 0:00:00]} 17. h3 {[%emt 0:11:14]} Ne6 {[%emt 0:00:00]} 18. Bc4 {[%emt 0:03:18]} bxc3 {[%emt 0:00:00]} 19. bxc3 {[%emt 0:02:15]} g6 {[%emt 0:00:00]} 20. Nxe7+ {[%emt 0:03:09]} Qxe7 {[%emt 0:00:00]} 21. Ng5 {[%emt 0:02:32]} Kg7 {[%emt 0:00:00]} 22. Qc1 {[%emt 0:01:54]} Ng8 {[%emt 0:00:00]} 23. Nxe6+ {[%emt 0:06:09]} fxe6 {[%emt 0:00:00]} 24. Be3 {[%emt 0:00:21]} d5 {[%emt 0:00:00]} 25. exd5 {[%emt 0:01:06]} exd5 {[%emt 0:00:00]} 26. Bb5 {[%emt 0:00:02]} Qd6 {[%emt 0:00:00]} 27. Qa3 {[%emt 0:00:12]} d4 {[%emt 0:00:00]} 28. cxd4 {[%emt 0:03:09]} exd4 {[%emt 0:00:00]} 29. Qb2 {[%emt 0:00:54]} Rf6 {[%emt 0:01:22]} 30. Bg5 {[%emt 0:01:23]} Rf5 {[%emt 0:00:13]} 31. Bh4 {[%emt 0:01:37]} Raf8 {[%emt 0:02:20]} 32. Rf1 {[%emt 0:02:28]} Nf6 {[%emt 0:02:32]} 33. f3 {[%emt 0:02:00]} Nd5 {[%emt 0:01:45]} 34. Bc4 {[%emt 0:00:43]} Bc6 {[%emt 0:00:28]} 35. Rae1 {[%emt 0:00:28]} g5 {[%emt 0:00:26]} 36. Bf2 {[%emt 0:01:07]} Nf4 {[%emt 0:00:25]} 37. Qd2 {[%emt 0:00:46]} R8f6 {[%emt 0:00:31]} 38. Kh1 {[%emt 0:00:20]} Nxh3 {[%emt 0:00:43]} 39. gxh3 {[%emt 0:00:43]} Rh6 {[%emt 0:00:03]} 40. h4 {[%emt 0:00:24]} Rxf3 {[%emt 0:00:27]} 41. Qxg5+ {[%emt 0:00:15]} Rg6 {[%emt 0:00:01]} 0-1

[Event "7th Tulasi Lal Memorial TCCC 2024"]
[Site "Chyasal"]
[Date "2024.12.29"]
[Round "2.4"]
[White "Joshi, Sindira"]
[Black "Kapali, Binita"]
[Result "0-1"]
[ECO "C45"]
[WhiteElo "1735"]
[BlackElo "1652"]
[Annotator "NA RC"]
[PlyCount "81"]
[EventDate "2024.12.29"]
[EventType "team-tourn"]
[EventCountry "NEP"]
[SourceTitle "playchess.com"]
[Source "ChessBase"]
[SourceQuality "1"]
[TimeControl "5400+30"]

1. e4 {[%emt 0:00:29]} e5 {[%emt 0:00:06]} 2. Nf3 {[%emt 0:00:06]} Nc6 {[%emt 0:00:17]} 3. d4 {[%emt 0:00:33]} exd4 {[%emt 0:01:20]} 4. Nxd4 {[%emt 0:00:19]} Qf6 {[%emt 0:11:29]} 5. Nb5 {[%emt 0:03:39]} Qd8 {[%emt 0:04:19]} 6. Bf4 {[%emt 0:05:50]} d6 {[%emt 0:00:43]} 7. N1c3 {[%emt 0:01:01]} a6 {[%emt 0:01:52]} 8. Nd4 {[%emt 0:00:21]} Bd7 {[%emt 0:00:28]} 9. Qd2 {[%emt 0:06:36]} Be7 {[%emt 0:07:44]} 10. O-O-O {[%emt 0:09:28]} Nf6 {[%emt 0:02:36]} 11. Kb1 {[%emt 0:01:34]} h6 {[%emt 0:00:53]} 12. f3 {[%emt 0:02:23]} Ne5 {[%emt 0:00:56]} 13. Bg3 {[%emt 0:06:46]} Qc8 {[%emt 0:10:20]} 14. f4 {[%emt 0:11:58]} Nc6 {[%emt 0:03:55]} 15. Bc4 {[%emt 0:08:44]} b5 {[%emt 0:03:34]} 16. Bd5 {[%emt 0:02:12]} Nxd5 {[%emt 0:01:23]} 17. Nxd5 {[%emt 0:01:44]} Bd8 {[%emt 0:01:06]} 18. e5 {[%emt 0:06:01]} dxe5 {[%emt 0:01:46]} 19. fxe5 {[%emt 0:01:19]} Nxd4 {[%emt 0:02:10]} 20. Qxd4 {[%emt 0:00:35]} O-O {[%emt 0:03:18]} 21. Nf6+ {[%emt 0:04:20]} gxf6 {[%emt 0:05:17]} 22. Qxd7 {[%emt 0:00:18]} Qxd7 {[%emt 0:00:08]} 23. Rd3 {[%emt 0:25:44]} Qd6 24. Rxd6 {[%emt 0:00:00]} Re8 {[%emt 0:06:56]} 25. Rd7 f5 {[%emt 0:01:15]} 26. a3 {[%emt 0:00:00]} Bf6 {[%emt 0:00:57]} 27. Rd6 {[%emt 0:00:00]} Re6 {[%emt 0:00:30]} 28. Rhd1 {[%emt 0:00:00]} Rae8 {[%emt 0:00:36]} 29. Rd7 {[%emt 0:00:00]} c5 {[%emt 0:03:40]} 30. Rc7 {[%emt 0:00:00]} c4 {[%emt 0:01:57]} 31. Rdd7 {[%emt 0:00:00]} R6e7 {[%emt 0:02:33]} 32. Rxe7 {[%emt 0:00:00]} Rxe7 {[%emt 0:00:07]} 33. Rxe7 {[%emt 0:00:00]} Bxe7 {[%emt 0:00:12]} 34. Kc1 {[%emt 0:00:00]} Bd6 {[%emt 0:00:25]} 35. h3 {[%emt 0:00:00]} Bxe5 {[%emt 0:02:53]} 36. Bxe5 {[%emt 0:00:00]} a5 {[%emt 0:02:49]} 37. b3 {[%emt 0:00:00]} cxb3 {[%emt 0:00:59]} 38. cxb3 {[%emt 0:00:12]} b4 {[%emt 0:00:16]} 39. axb4 {[%emt 0:00:36]} axb4 {[%emt 0:00:00]} 40. Kd2 {[%emt 0:03:33]} f4 {[%emt 0:00:00]} 41. Ke2 {[%emt 0:04:39]} 0-1

[Event "7th Tulasi Lal Memorial TCCC 2024"]
[Site "Chyasal"]
[Date "2024.12.29"]
[Round "2.5"]
[White "Chaulagain, Purusottam"]
[Black "Jaiswal, Rupesh"]
[Result "1/2-1/2"]
[ECO "A40"]
[WhiteElo "1974"]
[BlackElo "2062"]
[Annotator "RC"]
[PlyCount "77"]
[EventDate "2024.12.29"]
[EventType "team-tourn"]
[EventCountry "NEP"]
[SourceTitle "playchess.com"]
[Source "ChessBase"]
[SourceQuality "1"]
[TimeControl "5400+30"]

1. d4 {[%emt 0:00:02]} a6 {[%emt 0:00:08]} 2. Nc3 {[%emt 0:00:19]} g6 {[%emt 0:00:25]} 3. Bf4 {[%emt 0:00:10]} Bg7 {[%emt 0:00:32]} 4. Qd2 {[%emt 0:00:36]} d6 {[%emt 0:00:54]} 5. Nf3 {[%emt 0:01:22]} b5 {[%emt 0:00:10]} 6. a3 {[%emt 0:00:22]} Bb7 {[%emt 0:00:14]} 7. e4 {[%emt 0:00:25]} Nd7 {[%emt 0:00:18]} 8. Be2 {[%emt 0:08:45]} Ngf6 {[%emt 0:10:36]} 9. e5 {[%emt 0:06:00]} Nd5 {[%emt 0:01:18]} 10. Nxd5 {[%emt 0:00:27]} Bxd5 {[%emt 0:00:37]} 11. O-O {[%emt 0:02:28]} Nb6 {[%emt 0:03:17]} 12. Bh6 {[%emt 0:04:08]} O-O {[%emt 0:03:00]} 13. b3 {[%emt 0:05:02]} c5 {[%emt 0:03:41]} 14. Rfd1 {[%emt 0:07:14]} c4 {[%emt 0:03:22]} 15. Qe3 {[%emt 0:11:19]} Qd7 {[%emt 0:01:03]} 16. Bxg7 {[%emt 0:05:13]} Kxg7 {[%emt 0:00:14]} 17. Rac1 {[%emt 0:02:07]} Rac8 {[%emt 0:01:30]} 18. Ng5 {[%emt 0:04:04]} cxb3 {[%emt 0:02:35]} 19. cxb3 {[%emt 0:01:33]} Rxc1 {[%emt 0:00:08]} 20. Rxc1 {[%emt 0:00:11]} Rc8 {[%emt 0:00:26]} 21. Bd1 {[%emt 0:07:35]} h6 {[%emt 0:05:12]} 22. Nf3 {[%emt 0:01:55]} Rxc1 {[%emt 0:03:44]} 23. Qxc1 {[%emt 0:00:05]} Qe6 {[%emt 0:00:16]} 24. Qc3 {[%emt 0:01:39]} Nd7 {[%emt 0:04:43]} 25. exd6 {[%emt 0:06:03]} exd6 {[%emt 0:01:16]} 26. h3 {[%emt 0:00:36]} Nf6 {[%emt 0:01:05]} 27. a4 {[%emt 0:04:13]} bxa4 {[%emt 0:01:16]} 28. bxa4 {[%emt 0:00:02]} Bc4 {[%emt 0:00:22]} 29. Bc2 {[%emt 0:01:04]} Qe2 {[%emt 0:02:34]} 30. Qd2 {[%emt 0:04:31]} a5 {[%emt 0:03:28]} 31. Qxe2 {[%emt 0:01:09]} Bxe2 {[%emt 0:00:19]} 32. Nd2 {[%emt 0:01:23]} Nd5 {[%emt 0:00:40]} 33. Nb3 {[%emt 0:03:36]} Nb4 {[%emt 0:00:27]} 34. Bb1 {[%emt 0:00:53]} Nc6 {[%emt 0:05:02]} 35. d5 {[%emt 0:02:10]} Nb4 {[%emt 0:00:12]} 36. Nxa5 {[%emt 0:00:12]} Nxd5 {[%emt 0:00:08]} 37. Nb7 {[%emt 0:01:44]} Nc3 {[%emt 0:43:48]} 38. Bc2 {[%emt 0:08:53]} d5 39. f3 {[%emt 0:00:00]} 1/2-1/2

[Event "7th Tulasi Lal Memorial TCCC 2024"]
[Site "Chyasal"]
[Date "2024.12.29"]
[Round "2.6"]
[White "Silwal, Purushottam"]
[Black "Subedi, Rajan"]
[Result "0-1"]
[ECO "B27"]
[WhiteElo "2058"]
[BlackElo "2021"]
[Annotator "RC"]
[PlyCount "129"]
[EventDate "2024.12.29"]
[EventType "team-tourn"]
[EventCountry "NEP"]
[SourceTitle "playchess.com"]
[Source "ChessBase"]
[SourceQuality "1"]
[TimeControl "5400+30"]

1. e4 {[%emt 0:00:43]} g6 {[%emt 0:00:30]} 2. d4 {[%emt 0:00:13]} c5 {[%emt 0:00:19]} 3. dxc5 {[%emt 0:00:13]} Qa5+ {[%emt 0:00:41]} 4. Nc3 {[%emt 0:00:13]} Bg7 {[%emt 0:00:27]} 5. Nf3 {[%emt 0:00:06]} Qxc5 {[%emt 0:00:12]} 6. Bd3 {[%emt 0:00:46]} d6 {[%emt 0:00:51]} 7. O-O {[%emt 0:00:07]} Nf6 {[%emt 0:00:10]} 8. Be3 {[%emt 0:05:42]} Qa5 {[%emt 0:00:31]} 9. Qd2 {[%emt 0:06:00]} O-O {[%emt 0:00:38]} 10. Nd5 {[%emt 0:00:06]} Qd8 {[%emt 0:00:09]} 11. Bh6 {[%emt 0:00:23]} Nbd7 {[%emt 0:04:49]} 12. Bxg7 {[%emt 0:00:13]} Kxg7 {[%emt 0:00:02]} 13. Rfe1 {[%emt 0:00:16]} e6 {[%emt 0:03:50]} 14. Nc3 {[%emt 0:00:05]} Nb6 {[%emt 0:01:43]} 15. Rad1 {[%emt 0:00:13]} d5 {[%emt 0:00:35]} 16. exd5 {[%emt 0:00:16]} Nfxd5 {[%emt 0:02:22]} 17. Nxd5 {[%emt 0:01:03]} Nxd5 {[%emt 0:00:44]} 18. c4 {[%emt 0:01:12]} Nf6 {[%emt 0:00:58]} 19. Qc3 {[%emt 0:00:08]} Qe7 {[%emt 0:00:56]} 20. Ne5 {[%emt 0:01:19]} Rd8 {[%emt 0:01:12]} 21. Re3 {[%emt 0:00:23]} Kg8 {[%emt 0:00:33]} 22. Rf3 {[%emt 0:01:01]} Bd7 {[%emt 0:00:52]} 23. Re1 {[%emt 0:01:58]} Be8 {[%emt 0:00:41]} 24. Nxg6 {[%emt 1:19:51]} hxg6 {[%emt 0:00:59]} 25. Bxg6 {[%emt 0:00:00]} fxg6 {[%emt 0:00:52]} 26. Rxf6 {[%emt 0:00:00]} Qg7 {[%emt 0:09:20]} 27. h4 {[%emt 0:00:00]} Bf7 {[%emt 0:00:55]} 28. Re3 {[%emt 0:00:00]} Rd1+ {[%emt 0:01:58]} 29. Kh2 {[%emt 0:00:00]} Rad8 {[%emt 0:00:09]} 30. h5 {[%emt 0:00:00]} R1d3 {[%emt 0:02:35]} 31. Rxd3 {[%emt 0:00:00]} Rxd3 {[%emt 0:00:12]} 32. Qxd3 {[%emt 0:00:00]} Qxf6 {[%emt 0:00:07]} 33. hxg6 {[%emt 0:00:00]} Bxg6 {[%emt 0:00:29]} 34. Qg3 {[%emt 0:00:00]} e5 {[%emt 0:03:41]} 35. Kg1 {[%emt 0:00:00]} Kg7 {[%emt 0:01:22]} 36. Qe3 {[%emt 0:00:00]} a6 {[%emt 0:01:04]} 37. Qc5 {[%emt 0:00:00]} Be4 {[%emt 0:02:02]} 38. Qc7+ {[%emt 0:00:00]} Kh6 {[%emt 0:00:33]} 39. Qc8 {[%emt 0:00:00]} Bc6 {[%emt 0:01:00]} 40. Qh3+ {[%emt 0:00:00]} Kg7 {[%emt 0:00:12]} 41. Qg3+ {[%emt 0:00:00]} Kf7 {[%emt 0:00:14]} 42. f3 {[%emt 0:00:00]} Qf4 {[%emt 0:00:34]} 43. Qe1 {[%emt 0:00:00]} Qd4+ {[%emt 0:00:17]} 44. Kh2 {[%emt 0:00:00]} Qxb2 {[%emt 0:00:13]} 45. Qh4 {[%emt 0:00:00]} Qd4 {[%emt 0:03:10]} 46. Qh7+ {[%emt 0:00:00]} Ke6 {[%emt 0:00:31]} 47. Qg6+ {[%emt 0:00:00]} Kd7 {[%emt 0:00:13]} 48. Qf7+ {[%emt 0:00:00]} Kc8 {[%emt 0:01:10]} 49. Qf5+ {[%emt 0:00:00]} Kc7 {[%emt 0:00:11]} 50. Qf7+ {[%emt 0:00:00]} Kb6 {[%emt 0:00:15]} 51. c5+ {[%emt 0:00:00]} Kxc5 {[%emt 0:00:27]} 52. Qc7 {[%emt 0:00:00]} Kb5 {[%emt 0:00:49]} 53. Qh7 {[%emt 0:00:00]} e4 {[%emt 0:00:21]} 54. fxe4 {[%emt 0:00:00]} Qxe4 {[%emt 0:00:07]} 55. Qh5+ {[%emt 0:00:00]} Kb4 {[%emt 0:00:22]} 56. Qh3 {[%emt 0:00:00]} Qxg2+ {[%emt 0:00:07]} 57. Qxg2 {[%emt 0:00:00]} Bxg2 {[%emt 0:00:08]} 58. Kxg2 {[%emt 0:00:00]} Ka3 {[%emt 0:00:13]} 59. Kf2 {[%emt 0:00:00]} Kxa2 {[%emt 0:00:10]} 60. Ke2 {[%emt 0:00:00]} b5 {[%emt 0:00:06]} 61. Kf2 {[%emt 0:00:00]} b4 {[%emt 0:00:01]} 62. Ke2 {[%emt 0:00:00]} b3 {[%emt 0:00:01]} 63. Kf2 {[%emt 0:00:00]} b2 {[%emt 0:00:01]} 64. Ke2 {[%emt 0:00:00]} b1=Q {[%emt 0:00:03]} 65. Kf2 {[%emt 0:00:00]} 0-1

[Event "7th Tulasi Lal Memorial TCCC 2024"]
[Site "Chyasal"]
[Date "2024.12.29"]
[Round "2.7"]
[White "Dahal, Sushrut"]
[Black "Bhandari, Kshitiz"]
[Result "1/2-1/2"]
[ECO "A45"]
[WhiteElo "2007"]
[BlackElo "2103"]
[Annotator "RC"]
[PlyCount "43"]
[EventDate "2024.12.29"]
[EventType "team-tourn"]
[EventCountry "NEP"]
[SourceTitle "playchess.com"]
[Source "ChessBase"]
[SourceQuality "1"]
[TimeControl "5400+30"]

1. d4 {[%emt 0:00:07]} Nf6 {[%emt 0:01:56]} 2. Nc3 {[%emt 0:00:02]} e6 {[%emt 0:00:24]} 3. Bf4 {[%emt 0:00:09]} a6 {[%emt 0:00:57]} 4. e3 {[%emt 0:00:31]} b5 {[%emt 0:03:46]} 5. Nf3 {[%emt 0:03:51]} Bb7 {[%emt 0:00:37]} 6. Bd3 {[%emt 0:01:19]} d6 {[%emt 0:01:32]} 7. O-O {[%emt 0:07:26]} Nbd7 {[%emt 0:00:56]} 8. Re1 {[%emt 0:02:14]} c5 {[%emt 0:02:41]} 9. a4 {[%emt 0:06:34]} b4 {[%emt 0:11:38]} 10. Nb1 {[%emt 0:02:20]} Be7 {[%emt 0:00:27]} 11. Nbd2 {[%emt 0:02:57]} Nh5 {[%emt 0:04:49]} 12. Bg3 {[%emt 0:01:04]} Nxg3 {[%emt 0:00:51]} 13. hxg3 {[%emt 0:00:25]} O-O {[%emt 0:00:25]} 14. c3 {[%emt 0:01:50]} d5 {[%emt 0:11:25]} 15. e4 {[%emt 0:03:40]} a5 {[%emt 0:08:07]} 16. Qe2 {[%emt 0:04:32]} bxc3 {[%emt 0:04:00]} 17. bxc3 {[%emt 0:00:07]} cxd4 {[%emt 0:00:06]} 18. cxd4 {[%emt 0:05:33]} Bb4 {[%emt 0:03:02]} 19. Rec1 {[%emt 0:06:56]} dxe4 {[%emt 0:10:34]} 20. Bxe4 {[%emt 0:03:20]} Bxe4 {[%emt 0:05:32]} 21. Nxe4 {[%emt 0:01:19]} Nb6 {[%emt 0:27:15]} 22. Nc3 {[%emt 0:00:30]} 1/2-1/2